[Event "German Bundesliga 2024-25"]
[Site "Germany"]
[Date "2025.01.12"]
[Round "6.7"]
[White "Neuman, Petr"]
[Black "Popovic, Dusan"]
[Result "1/2-1/2"]
[Annotator "TA"]
[ECO "B08"]
[WhiteElo "2426"]
[BlackElo "2487"]
[PlyCount "83"]
[EventDate "2024.09.27"]
[EventType "team-tourn"]
[EventCountry "GER"]
[SourceTitle "playchess.com"]
[Source "ChessBase"]
[SourceQuality "1"]
[WhiteTeam "Bad Mergentheim"]
[BlackTeam "Deggendorf"]
[TimeControl "40/5400+30:1800+30"]

{[%evp 17,83,2,14,-5,-8,0,-10,-13,-9,-7,0,-8,0,-18,-20,-7,-10,-83,-81,-75,-72,-113,-109,-129,-138,-120,-143,-119,-68,-67,-67,-73,-61,-56,-35,-37,-37,-36,-38,-30,-40,-35,-27,-27,-28,-33,-33,-40,-33,-33,-36,-32,-32,-37,-32,-32,-32,-32,-32,-58,-58,-58,-58,-58,-12,-12,-12,-12]} 1. e4 {[%emt 0:00:05]} g6 {[%emt 0:00:33]} 2. d4 {[%emt 0:00:42]} d6 {[%emt 0:00:44]} 3. Nc3 {[%emt 0:04:12]} Bg7 {[%emt 0:00:07]} 4. h3 {[%emt 0:00:20]} Nc6 {[%emt 0:02:52]} 5. Nf3 {[%emt 0:04:36]} Nf6 {[%emt 0:00:35]} 6. Be2 {[%emt 0:01:24]} O-O {[%emt 0:00:07]} 7. O-O {[%emt 0:00:08]} e5 {[%emt 0:00:54]} 8. dxe5 {[%emt 0:02:58]} dxe5 {[%emt 0:00:18]} 9. Qxd8 {[%emt 0:01:56]} Rxd8 {[%emt 0:00:07]} 10. Bg5 {[%emt 0:01:25]} Be6 {[%emt 0:04:36]} 11. Rfd1 {[%emt 0:08:11]} h6 {[%emt 0:03:52]} 12. Be3 {[%emt 0:02:28]} Ne8 {[%emt 0:02:19]} 13. Bc5 {[%emt 0:12:19]} b6 {[%emt 0:14:35]} 14. Bb5 $1 {[%emt 0:20:02]} Nd4 $36 {[%emt 0:03:51][%mdl 2048] Black has the initiative.} 15. Bxd4 {[%emt 0:01:05]} exd4 {[%emt 0:00:08]} 16. Nd5 {[%emt 0:01:02] Ne7+ is the strong threat.} c5 {[%emt 0:05:34]} 17. a4 {[%emt 0:06:50]} (17. Nf4 $11) 17... Bxd5 $17 {[%emt 0:41:53]} 18. exd5 {[%emt 0:01:18]} Nc7 {[%emt 0:02:08]} (18... Rxd5 19. Bc6 Rad8 20. Bxd5 Rxd5 21. Rd3 $11) 19. Bc6 {[%emt 0:01:24]} Rac8 {[%emt 0:05:10]} 20. c4 {[%emt 0:01:28]} dxc3 {[%emt 0:01:33]} 21. bxc3 {[%emt 0:00:06]} Bxc3 {[%emt 0:00:24]} 22. Rac1 {[%emt 0:00:30]} Bf6 {[%emt 0:05:36]} (22... Bb2 $17 23. Rb1 Bf6) 23. d6 $1 $15 {[%emt 0:03:01]} Ne6 {[%emt 0:00:06]} 24. Bb5 {[%emt 0:00:05]} Nf8 {[%emt 0:01:52]} 25. g3 {[%emt 0:02:12]} a6 {[%emt 0:00:48]} 26. Bxa6 {[%emt 0:00:15]} Rc6 {[%emt 0:00:04]} 27. d7 {[%emt 0:00:34]} Rxd7 {[%emt 0:00:34]} 28. Rxd7 {[%emt 0:02:58]} Nxd7 {[%emt 0:00:02]} 29. Rd1 {[%emt 0:00:24]} Ne5 {[%emt 0:02:25]} 30. Nxe5 {[%emt 0:01:03]} Bxe5 $11 {[%emt 0:00:02][%mdl 4096] Endgame KRB-KRB. Black is a pawn up.} 31. Rd8+ {[%emt 0:00:33]} Kg7 {[%emt 0:00:06]} 32. Bc4 {[%emt 0:00:06]} Rd6 {[%emt 0:00:59]} 33. Rxd6 {[%emt 0:00:19]} Bxd6 $15 {[%emt 0:00:06] KB-KB. Black is a pawn up.} 34. Kf1 {[%emt 0:05:24]} f5 {[%emt 0:00:12]} 35. Ke2 {[%emt 0:01:46]} Kf6 {[%emt 0:00:18]} 36. f4 {[%emt 0:01:01]} g5 {[%emt 0:00:52]} 37. Kf3 {[%emt 0:00:07]} Bc7 {[%emt 0:00:41]} 38. h4 {[%emt 0:02:02][%cal Bh3h4,Bh4h5][%mdl 32]} gxf4 {[%emt 0:00:55]} 39. gxf4 {[%emt 0:00:05]} Kg6 {[%emt 0:00:57]} 40. Kg3 {[%emt 0:00:27][%cal Oh4h5]} Bd8 {[%emt 0:00:19]} (40... h5 $1 $15 {deserves consideration.}) 41. h5+ $1 $11 {[%emt 0:30:38]} Kf6 {[%emt 0:30:09]} 42. Kf3 {[%emt 0:00:07]} 1/2-1/2

[Event "German Bundesliga 2024-25"]
[Site "Germany"]
[Date "2025.01.12"]
[Round "6.8"]
[White "Naumann, Alexander"]
[Black "Wachinger, Nikolas"]
[Result "0-1"]
[Annotator "TA"]
[ECO "B90"]
[WhiteElo "2476"]
[BlackElo "2441"]
[PlyCount "132"]
[EventDate "2024.09.27"]
[EventType "team-tourn"]
[EventCountry "GER"]
[SourceTitle "playchess.com"]
[Source "ChessBase"]
[SourceQuality "1"]
[WhiteTeam "SG Solingen"]
[BlackTeam "Werder Bremen"]
[TimeControl "40/5400+30:1800+30"]

{[%evp 62,132,53,58,80,0,0,0,0,0,0,0,0,-10,0,-45,107,-29,-21,-21,0,0,0,0,0,0,-11,-14,-21,-16,-24,-20,0,-72,0,0,0,0,0,0,0,0,0,0,0,-8,-8,-834,-662,-1307,-1272,-1100,-658,-1407,-1469,-1927,-1581,-2170,-2110,-2845,-1843,-29963,-29965,-29974,-29951,-29979,-29980,-29987,-29980,-29979,-29979,-29988,-29989]} 1. e4 {[%emt 0:00:04]} c5 {[%emt 0:00:28]} 2. Nf3 {[%emt 0:00:06]} d6 {[%emt 0:00:09]} 3. d4 {[%emt 0:00:05]} cxd4 {[%emt 0:00:06]} 4. Nxd4 {[%emt 0:00:06]} Nf6 {[%emt 0:00:08]} 5. Nc3 {[%emt 0:00:05]} a6 {[%emt 0:00:05]} 6. Be3 {[%emt 0:00:05]} e5 {[%emt 0:00:55]} 7. Nf3 {[%emt 0:00:22]} Be7 {[%emt 0:00:52]} 8. Bc4 {[%emt 0:01:28]} O-O {[%emt 0:01:03]} 9. O-O {[%emt 0:01:19]} Nc6 {[%emt 0:00:09]} 10. Re1 {[%emt 0:00:27]} Na5 {[%emt 0:11:12]} 11. Bf1 {[%emt 0:04:23]} b5 {[%emt 0:05:03]} 12. Bg5 {[%emt 0:31:33]} Bb7 {[%emt 0:13:39]} 13. Bxf6 {[%emt 0:05:16]} Bxf6 {[%emt 0:00:09]} 14. Nd5 {[%emt 0:00:16]} Rc8 {[%emt 0:11:42]} 15. a4 {[%emt 0:18:05]} Bxd5 {[%emt 0:12:46]} 16. Qxd5 {[%emt 0:00:38]} b4 {[%emt 0:00:57]} 17. Qd2 {[%emt 0:12:23]} Qb6 {[%emt 0:01:09]} 18. Rad1 {[%emt 0:01:53]} Rfd8 {[%emt 0:01:06]} 19. b3 {[%emt 0:03:21]} Rc5 {[%emt 0:08:50]} 20. Qe2 {[%emt 0:02:33]} h6 {[%emt 0:16:34]} 21. Rd2 {[%emt 0:01:56]} Ra8 {[%emt 0:01:41]} 22. Red1 {[%emt 0:00:56]} Qc7 {[%emt 0:00:37]} 23. g3 {[%emt 0:06:17]} Be7 {[%emt 0:02:09]} 24. h4 {[%emt 0:00:24]} Rc3 {[%emt 0:00:41]} 25. Bh3 {[%emt 0:03:53]} Nb7 {[%emt 0:00:41]} 26. h5 {[%emt 0:02:25]} Nc5 {[%emt 0:05:17]} 27. Bf5 {[%emt 0:00:33]} Ne6 {[%emt 0:00:32]} 28. Bxe6 {[%emt 0:00:19]} fxe6 {[%emt 0:00:03]} 29. Ne1 {[%emt 0:00:24]} Bf8 {[%emt 0:02:19]} 30. Kg2 {[%emt 0:00:54]} a5 {[%emt 0:00:29]} 31. Rd3 {[%emt 0:00:35]} Rxd3 {[%emt 0:01:21]} 32. Rxd3 {[%emt 0:00:22]} Qc6 {[%emt 0:01:32] [#]} 33. Nf3 {[%emt 0:02:20]} (33. Qg4 $1 $16 {[%cal Rg4e6]} Qe8 34. c4 bxc3 35. Rxc3) 33... Be7 $11 {[%emt 0:00:27]} 34. Ne1 {[%emt 0:01:00]} Rf8 {[%emt 0:00:35]} 35. Rf3 {[%emt 0:00:24]} Bf6 {[%emt 0:01:24]} 36. Rd3 {[%emt 0:00:42]} d5 {[%emt 0:00:14]} 37. f3 {[%emt 0:00:11]} Bg5 {[%emt 0:01:18]} 38. Kh2 {[%emt 0:00:43]} (38. exd5 exd5 39. f4 (39. Qxe5 $2 Re8 $19) 39... d4+ (39... exf4 $2 40. Nf3 $17) 40. Kg1 exf4 $17) 38... Qc5 $2 {[%emt 0:00:33]} (38... d4 $15 {keeps the upper hand.}) 39. Kg2 {[%emt 0:00:16]} ({White has to play} 39. exd5 $16 exd5 40. Qxe5) 39... d4 $11 {[%emt 0:00:29]} 40. Rd1 {[%emt 0:00:42]} Qc3 {[%emt 0:00:23]} 41. Nd3 {[%emt 0:02:28]} (41. Qa6 Bd2 (41... Rxf3 42. Nxf3 Qxc2+ 43. Rd2 $11) 42. Qxe6+ Kh8 43. Rxd2 Qxd2+ 44. Kf1 Qc1 $17) 41... Rc8 {[%emt 0:17:04]} 42. f4 {[%emt 0:10:10]} exf4 {[%emt 0:00:17]} 43. gxf4 {[%emt 0:00:05]} Bf6 {[%emt 0:00:16]} 44. e5 {[%emt 0:12:50]} Qxc2 {[%emt 0:00:31]} 45. Qxc2 {[%emt 0:02:43]} Rxc2+ {[%emt 0:00:03]} 46. Kf3 {[%emt 0:00:08]} Bd8 {[%emt 0:02:47]} 47. Rc1 {[%emt 0:02:21]} (47. Ke4 $11 {remains equal.}) 47... Rc3 {[%emt 0:00:16]} (47... Rxc1 $17 48. Nxc1 g6) 48. Ke4 $11 {[%emt 0:00:30]} Bb6 {[%emt 0:00:14]} (48... Rxb3 $2 49. Rc8 $18 (49. Kxd4 Bb6+ 50. Kc4 Ra3 $15)) 49. Rb1 {[%emt 0:02:47]} Kf7 {[%emt 0:00:33]} 50. Rb2 {[%emt 0:00:12]} Ba7 {[%emt 0:03:31]} 51. Rb1 {[%emt 0:00:17]} Rc2 {[%emt 0:03:59]} 52. Rb2 {[%emt 0:00:11]} Rxb2 {[%emt 0:02:01]} 53. Nxb2 {[%emt 0:00:01]} g6 $1 {[%emt 0:00:05]} 54. Nc4 $2 {[%emt 0:00:34][%mdl 8192]} (54. hxg6+ $11 Kxg6 55. Nc4) 54... gxh5 $19 {[%emt 0:00:29]} 55. Nxa5 {[%emt 0:02:14]} h4 {[%emt 0:00:03]} 56. Nc4 {[%emt 0:00:32]} Kg6 {[%emt 0:01:44]} 57. Kf3 {[%emt 0:00:33]} h5 {[%emt 0:01:37]} 58. a5 {[%emt 0:00:15]} d3 {[%emt 0:00:48]} 59. a6 {[%emt 0:00:11]} Bc5 {[%emt 0:00:40]} (59... h3 60. Kg3 $11) 60. Nd2 {[%emt 0:00:58]} Kf5 {[%emt 0:00:55]} 61. Ne4 {[%emt 0:00:33]} h3 {[%emt 0:00:31]} 62. Ng3+ {[%emt 0:00:34]} Kg6 {[%emt 0:00:05]} 63. f5+ {[%emt 0:00:32]} exf5 {[%emt 0:00:14]} 64. e6 {[%emt 0:00:01]} h4 {[%emt 0:01:18]} 65. e7 {[%emt 0:00:49] [#]} Kf7 $1 {[%emt 0:00:29]} (65... hxg3 $2 66. e8=Q+ (66. e8=B+ $2 Kh6 $19) 66... Kg5 67. Qd8+ (67. Kxg3 f4+ 68. Kxh3 d2 $18) 67... Kg6 68. Kxg3 $18) ({Weaker is} 65... Bxe7 66. a7 d2 (66... hxg3 67. a8=Q $11) 67. Ke2 hxg3 68. a8=Q $11 (68. a8=B {leads to mate.} g2 69. Kxd2 g1=Q 70. Ke2 Qd4 71. Bf3 Bg5 72. Ke1 Qe3+ 73. Kf1 Qxf3+ 74. Ke1 Qg2 75. Kd1 Qd2#)) 66. Nxf5 {[%emt 0:00:42]} h2 {[%emt 0:00:13]} (66... Bxe7 $2 {is the wrong capture.} 67. a7 h2 68. Kg2 $18) 0-1

[Event "German Bundesliga 2024-25"]
[Site "Germany"]
[Date "2025.01.12"]
[Round "6.8"]
[White "Sedlak, Nikola"]
[Black "Gasthofer, Alexander"]
[Result "1/2-1/2"]
[Annotator "TA"]
[ECO "D02"]
[WhiteElo "2444"]
[BlackElo "2388"]
[PlyCount "56"]
[EventDate "2024.09.27"]
[EventType "team-tourn"]
[EventCountry "GER"]
[SourceTitle "playchess.com"]
[Source "ChessBase"]
[SourceQuality "1"]
[WhiteTeam "Deggendorf"]
[BlackTeam "Bad Mergentheim"]
[TimeControl "40/5400+30:1800+30"]

{[%evp 10,56,12,1,7,0,0,0,10,10,12,0,20,13,10,8,35,23,27,15,11,17,19,20,13,16,13,26,25,25,40,14,18,13,18,11,22,20,16,5,8,0,0,1,1,4,0,3,8]} 1. d4 {[%emt 0:00:04]} d5 {[%emt 0:00:21]} 2. Nf3 {[%emt 0:00:09]} Nf6 {[%emt 0:00:25]} 3. Bf4 {[%emt 0:00:10]} Bf5 {[%emt 0:03:31]} 4. e3 {[%emt 0:01:41]} e6 {[%emt 0:01:07]} 5. Bd3 {[%emt 0:01:26]} Bxd3 {[%emt 0:04:50]} 6. cxd3 {[%emt 0:00:12]} Bd6 {[%emt 0:02:41]} 7. Bg3 {[%emt 0:04:15]} O-O {[%emt 0:04:13]} 8. Nc3 {[%emt 0:07:38]} c5 {[%emt 0:08:31]} 9. dxc5 {[%emt 0:04:57]} Bxc5 {[%emt 0:01:04]} 10. Qb3 {[%emt 0:00:20]} Qb6 {[%emt 0:05:24]} 11. Qxb6 {[%emt 0:02:40]} Bxb6 {[%emt 0:01:51]} 12. Ke2 {[%emt 0:02:46]} Nbd7 {[%emt 0:10:35]} 13. Rhc1 {[%emt 0:02:56]} Rfc8 {[%emt 0:03:32]} 14. Nb5 {[%emt 0:00:34]} Ne8 {[%emt 0:01:24]} 15. d4 {[%emt 0:01:12]} a6 {[%emt 0:02:33]} 16. Nd6 {[%emt 0:02:03]} Nxd6 {[%emt 0:01:24]} 17. Bxd6 {[%emt 0:00:06]} f6 {[%emt 0:01:23]} 18. Ne1 {[%emt 0:00:10][%cal Bf3e1,Be1d3,Bd3c5][%mdl 32]} Kf7 {[%emt 0:05:55]} 19. Nd3 {[%emt 0:00:41]} Bd8 {[%emt 0:01:15]} 20. g4 {[%emt 0:00:07]} Be7 {[%emt 0:07:17]} 21. Bg3 {[%emt 0:06:30]} Nb6 {[%emt 0:10:19]} 22. f3 {[%emt 0:07:51]} Nc4 {[%emt 0:06:15]} 23. Be1 {[%emt 0:15:43]} Nd6 {[%emt 0:05:00]} 24. Nc5 {[%emt 0:03:42]} b6 {[%emt 0:02:58]} 25. Na4 {[%emt 0:05:55]} Rxc1 {[%emt 0:00:34]} 26. Rxc1 {[%emt 0:00:06]} Rc8 {[%emt 0:00:03]} 27. Rxc8 {[%emt 0:00:39]} Nxc8 {[%emt 0:00:03]} 28. Bg3 {[%emt 0:00:45]} b5 {[%emt 0:01:00]} 1/2-1/2

[Event "German Bundesliga 2024-25"]
[Site "Germany"]
[Date "2025.01.12"]
[Round "6.8"]
[White "Genov, Petar"]
[Black "Kramer, Julian"]
[Result "1/2-1/2"]
[Annotator "TA"]
[ECO "B50"]
[WhiteElo "2413"]
[BlackElo "2480"]
[PlyCount "70"]
[EventDate "2024.09.27"]
[EventType "team-tourn"]
[EventCountry "GER"]
[SourceTitle "playchess.com"]
[Source "ChessBase"]
[SourceQuality "1"]
[WhiteTeam "Kirchweyhe"]
[BlackTeam "Hamburg"]
[TimeControl "40/5400+30:1800+30"]

{[%evp 9,70,0,14,8,14,8,7,-9,6,0,0,3,24,20,27,-8,22,20,17,11,25,23,16,16,18,24,34,22,34,40,50,18,15,15,14,10,29,22,33,19,64,39,67,54,45,47,29,0,0,0,0,0,0,0,0,0,0,0,0,0,0,0,0]} 1. e4 {[%emt 0:00:32]} c5 {[%emt 0:00:56]} 2. Nf3 {[%emt 0:00:38]} d6 {[%emt 0:00:05]} 3. c3 {[%emt 0:03:02]} Nf6 {[%emt 0:00:23]} 4. Be2 {[%emt 0:01:17]} Bd7 {[%emt 0:02:00][%cal Bc8d7,Bd7c6,Bc6b7][%mdl 32]} 5. d3 {[%emt 0:01:28]} g6 {[%emt 0:02:43]} 6. O-O {[%emt 0:03:17]} Bg7 {[%emt 0:00:05]} 7. Re1 {[%emt 0:05:43]} O-O {[%emt 0:07:23]} 8. Bf1 {[%emt 0:02:09]} Bc6 {[%emt 0:02:11]} 9. Nbd2 {[%emt 0:03:29]} e5 {[%emt 0:03:07]} 10. a4 {[%emt 0:11:04]} Nbd7 {[%emt 0:13:18][%cal Bb8d7,Bd7f8,Bf8e6,Be6d4][%mdl 32]} 11. b4 {[%emt 0:24:33] aiming for b5.} b6 {[%emt 0:10:41]} 12. Bb2 {[%emt 0:09:33]} (12. b5 $5 Bb7 $8 13. g3 $14) 12... Re8 {[%emt 0:05:39]} 13. b5 {[%emt 0:07:32]} Bb7 {[%emt 0:00:05]} 14. c4 {[%emt 0:01:31]} a5 {[%emt 0:05:27]} 15. g3 {[%emt 0:04:37]} Nf8 {[%emt 0:01:47]} 16. Nb1 {[%emt 0:02:55]} Bh6 {[%emt 0:01:35]} 17. Bh3 {[%emt 0:01:40]} Bc8 {[%emt 0:08:32]} 18. Bxc8 {[%emt 0:00:27]} Rxc8 {[%emt 0:00:03]} 19. Nc3 {[%emt 0:00:30]} Ne6 {[%emt 0:00:16]} 20. Bc1 {[%emt 0:01:56]} Bxc1 {[%emt 0:00:49]} 21. Rxc1 {[%emt 0:00:10]} Nd4 {[%emt 0:00:45]} 22. Kg2 {[%emt 0:05:10]} Kg7 {[%emt 0:15:37]} 23. Rf1 {[%emt 0:00:39]} Rf8 {[%emt 0:03:33]} 24. Rb1 {[%emt 0:00:47]} Nxf3 {[%emt 0:03:44]} 25. Qxf3 {[%emt 0:00:04]} Nh5 {[%emt 0:00:17]} 26. Nd5 {[%emt 0:02:17] White is more active.} f5 {[%emt 0:01:47]} 27. exf5 {[%emt 0:00:31]} Rxf5 {[%emt 0:00:03]} 28. Qe4 {[%emt 0:00:22]} Nf6 {[%emt 0:00:46]} 29. Nxf6 {[%emt 0:00:18]} Rxf6 {[%emt 0:00:02]} 30. f4 {[%emt 0:01:29]} exf4 {[%emt 0:01:05]} 31. Rxf4 {[%emt 0:00:07]} Rxf4 {[%emt 0:00:10]} 32. Qxf4 {[%emt 0:00:54]} Qf6 {[%emt 0:04:05]} 33. Rf1 {[%emt 0:01:57]} Rf8 {[%emt 0:00:44]} 34. Qxf6+ {[%emt 0:01:19]} Rxf6 {[%emt 0:00:03]} 35. Rd1 {[%emt 0:00:56]} Kf7 {[%emt 0:03:51]} 1/2-1/2

[Event "German Bundesliga 2024-25"]
[Site "Germany"]
[Date "2025.01.12"]
[Round "6.9"]
[White "Carlsen, Magnus"]
[Black "Wei, Yi"]
[Result "1/2-1/2"]
[Annotator "TA"]
[ECO "B90"]
[WhiteElo "2831"]
[BlackElo "2753"]
[PlyCount "71"]
[EventDate "2024.09.27"]
[EventType "team-tourn"]
[EventCountry "GER"]
[SourceTitle "playchess.com"]
[Source "ChessBase"]
[SourceQuality "1"]
[WhiteTeam "St. Pauli"]
[BlackTeam "Duesseldorf"]
[TimeControl "40/5400+30:1800+30"]

{[%evp 14,71,7,16,20,12,22,19,7,16,16,22,30,13,15,15,8,17,24,18,12,0,0,0,0,-7,7,8,10,-22,-12,-10,-13,-8,-19,-5,-20,-13,-10,-20,-12,-16,0,0,0,0,8,15,4,5,3,2,19,19,66,9,16,0,0,0]} 1. e4 {[%emt 0:00:03]} c5 {[%emt 0:00:10]} 2. Nf3 {[%emt 0:01:58]} d6 {[%emt 0:00:10]} 3. d4 {[%emt 0:00:55]} cxd4 {[%emt 0:00:14]} 4. Nxd4 {[%emt 0:00:07]} Nf6 {[%emt 0:00:08]} 5. Nc3 {[%emt 0:00:04]} a6 {[%emt 0:00:09]} 6. a4 {[%emt 0:05:57]} e5 {[%emt 0:00:59]} 7. Nf3 {[%emt 0:00:08]} Be7 {[%emt 0:00:14]} 8. Bg5 {[%emt 0:00:43]} Be6 {[%emt 0:00:37]} 9. Bxf6 {[%emt 0:00:08]} Bxf6 {[%emt 0:00:06]} 10. Nd5 {[%emt 0:00:12] Wards off Qb6} Nd7 {[%emt 0:00:24]} 11. Bc4 {[%emt 0:00:21]} Rc8 {[%emt 0:00:53]} 12. Qd3 {[%emt 0:04:39]} Nb6 {[%emt 0:18:31]} 13. Nxf6+ {[%emt 0:08:23]} Qxf6 {[%emt 0:01:34]} 14. Bxe6 {[%emt 0:00:06]} Qxe6 {[%emt 0:00:11]} 15. O-O {[%emt 0:00:07]} O-O {[%emt 0:00:05]} 16. Rfd1 {[%emt 0:00:18][%cal Oa4a5]} Rc6 {[%emt 0:01:39]} 17. b3 {[%emt 0:02:59]} Nd7 {[%emt 0:05:42]} 18. c4 {[%emt 0:15:04]} Nc5 {[%emt 0:18:20]} 19. Qe3 {[%emt 0:00:31]} f5 {[%emt 0:03:57]} 20. exf5 {[%emt 0:01:54]} Qxf5 {[%emt 0:02:34]} 21. Ra2 {[%emt 0:11:59]} Rb6 {[%emt 0:05:18]} 22. Rb2 {[%emt 0:14:09]} Nxa4 {[%emt 0:05:36]} 23. Rbd2 {[%emt 0:01:43]} Nc5 {[%emt 0:00:07][%cal Ba4c5,Bc5b3,Bb3d2,Bd2c4,Bc4e5][%mdl 32]} 24. Rxd6 {[%emt 0:02:12]} Rxd6 {[%emt 0:00:06]} 25. Rxd6 {[%emt 0:00:05][%cal Oh2h3,Bd1d6,Bd6b6,Bb6b7][%mdl 32]} Qb1+ {[%emt 0:00:12]} 26. Ne1 {[%emt 0:00:08]} e4 {[%emt 0:07:01] aiming for ...Nd3.} 27. Kf1 {[%emt 0:03:44]} Nxb3 {[%emt 0:12:28]} 28. Rb6 $1 $36 {[%emt 0:06:16][%csl LRb3,LRb7][%mdl 2048] White is more active.} Nd2+ $1 {[%emt 0:00:16]} 29. Kg1 $1 {[%emt 0:00:11]} Qa2 {[%emt 0:08:06]} 30. Rxb7 {[%emt 0:01:09] White threatens Qd4 and mate.} Nxc4 {[%emt 0:00:15]} 31. Qd4 {[%emt 0:00:38][%csl Gb7][%cal Rd4g7]} Ne5 $1 {[%emt 0:00:09][%cal Oa2e2]} 32. h3 {[%emt 0:02:12]} Qe6 {[%emt 0:05:35]} 33. Qxe4 {[%emt 0:00:44]} Qc6 {[%emt 0:00:15]} (33... Qd6 $11 {feels stronger.}) 34. Qb4 {[%emt 0:03:18]} (34. Qxc6 $14 Nxc6 35. Rb6) 34... h6 {[%emt 0:02:22]} 35. Qb2 {[%emt 0:01:49][%cal Ob7e7]} Qe4 {[%emt 0:00:28]} 36. Nd3 {[%emt 0:01:32]} 1/2-1/2

[Event "German Bundesliga 2024-25"]
[Site "Germany"]
[Date "2025.01.12"]
[Round "6.9"]
[White "Bartel, Mateusz"]
[Black "Tabatabaei, M. Amin"]
[Result "1-0"]
[Annotator "TA"]
[ECO "C13"]
[WhiteElo "2613"]
[BlackElo "2668"]
[PlyCount "103"]
[EventDate "2024.09.27"]
[EventType "team-tourn"]
[EventCountry "GER"]
[SourceTitle "playchess.com"]
[Source "ChessBase"]
[SourceQuality "1"]
[WhiteTeam "TU Dresden"]
[BlackTeam "Bayern Muenchen"]
[TimeControl "40/5400+30:1800+30"]

{[%evp 33,103,-42,-31,-68,-68,-81,-51,-60,-40,-36,-36,-42,-42,-27,-28,-21,-13,-19,0,0,0,0,0,-5,0,-14,-4,-20,-9,-10,-8,-28,0,0,0,0,0,0,4,0,0,0,133,63,140,77,111,108,162,62,64,62,175,17,178,145,274,274,6070,5618,29987,29988,29988,29989,29990,29991,29992,29993,29995,29996,29997,29998]} 1. e4 {[%emt 0:00:02]} e6 {[%emt 0:00:33]} 2. d4 {[%emt 0:00:24]} d5 {[%emt 0:00:09]} 3. Nc3 {[%emt 0:00:06]} Nf6 {[%emt 0:00:06]} 4. Bg5 {[%emt 0:00:05]} dxe4 {[%emt 0:00:15]} 5. Nxe4 {[%emt 0:00:07]} Be7 {[%emt 0:00:09]} 6. Nxf6+ {[%emt 0:01:14]} Bxf6 {[%emt 0:00:16]} 7. Bxf6 {[%emt 0:00:06]} Qxf6 {[%emt 0:00:09]} 8. Nf3 {[%emt 0:00:02]} O-O {[%emt 0:01:38]} 9. Qd3 {[%emt 0:02:45]} Rd8 {[%emt 0:03:18]} 10. O-O-O {[%emt 0:01:37]} Bd7 {[%emt 0:00:23]} 11. h4 {[%emt 0:07:24]} Bc6 {[%emt 0:01:07]} 12. Be2 {[%emt 0:10:45]} Nd7 {[%emt 0:01:28]} 13. Qe3 {[%emt 0:00:42]} b5 {[%emt 0:27:15]} 14. Ne5 {[%emt 0:22:50]} Nxe5 {[%emt 0:03:29]} 15. dxe5 {[%emt 0:00:14]} Rxd1+ {[%emt 0:03:07]} 16. Rxd1 {[%emt 0:13:23]} Qxh4 {[%emt 0:01:21]} 17. g3 {[%emt 0:00:35]} Qe7 {[%emt 0:03:12]} 18. Rd4 {[%emt 0:00:01]} a6 {[%emt 0:12:06]} 19. Bd3 {[%emt 0:04:32]} Rf8 {[%emt 0:05:48]} 20. Rh4 {[%emt 0:04:54]} h6 {[%emt 0:01:02]} 21. Rg4 {[%emt 0:01:14]} Kh8 {[%emt 0:02:22]} 22. Rh4 {[%emt 0:05:28]} f5 {[%emt 0:03:28]} 23. exf6 {[%emt 0:04:25]} Rxf6 {[%emt 0:00:27]} 24. f4 {[%emt 0:00:02]} Qd6 {[%emt 0:13:01]} 25. Rh5 {[%emt 0:03:38]} Be8 {[%emt 0:04:17]} 26. Re5 {[%emt 0:02:03]} Bg6 {[%emt 0:00:13]} 27. Be2 {[%emt 0:00:46]} Qc6 {[%emt 0:02:01]} 28. Bd1 {[%emt 0:00:02]} Qg2 {[%emt 0:03:00]} 29. Qc3 {[%emt 0:05:32]} b4 {[%emt 0:03:05]} 30. Qe1 {[%emt 0:00:41]} Bf5 {[%emt 0:00:29]} 31. Re2 {[%emt 0:01:31]} Qb7 {[%emt 0:02:48]} 32. Re5 {[%emt 0:01:47]} Qg2 {[%emt 0:00:17]} 33. Re2 {[%emt 0:00:08]} Qd5 {[%emt 0:02:14]} 34. Qxb4 {[%emt 0:00:33]} Qxa2 {[%emt 0:00:06]} 35. Re5 {[%emt 0:00:03]} Qa1+ {[%emt 0:01:31]} 36. Kd2 {[%emt 0:00:02]} Rf7 {[%emt 0:00:14]} 37. Qd4 $1 {[%emt 0:03:42]} Qa2 {[%emt 0:00:45]} (37... Kh7 $11) 38. g4 {[%emt 0:03:10]} (38. Bh5 $1 $16 {White threatens Qd8+ and mate.} Rf8 39. g4) 38... Bh7 {[%emt 0:00:23]} (38... Bg6 $14) 39. b3 {[%emt 0:00:04]} (39. g5 $142 {Threatens to win with gxh6.} Rf5 40. gxh6) 39... Qa3 {[%emt 0:01:51]} 40. Rxe6 {[%emt 0:00:16]} Qa5+ {[%emt 0:00:34]} (40... Qf8 $16) 41. b4 {[%emt 0:31:41]} (41. c3 $18 Qa2+ 42. Ke1) 41... Qa4 $1 $14 {[%emt 0:02:15]} 42. Ke1 $1 {[%emt 0:00:00]} (42. Rxh6 $2 Rd7 43. Rxh7+ Kxh7 $19) 42... Rd7 {[%emt 0:17:31] [#]} (42... c5 $1 $14 43. c3 (43. bxc5 $2 Qxd4 44. f5 Bg8 $19) (43. Qd8+ Bg8 $11) 43... cxd4 44. Bxa4 dxc3) 43. Re8+ $1 $18 {[%emt 0:00:00]} Bg8 {[%emt 0:00:02]} 44. Qe4 {[%emt 0:00:00]} c5 {[%emt 0:08:37] [#]} (44... Rd6 $16 45. Be2 Qc6) 45. Be2 $1 $18 {[%emt 0:00:00]} ({Not} 45. bxc5 Qa5+ 46. Kf2 Qxc5+ (46... Rxd1 47. Rxg8+ Kxg8 48. Qe8+ Kh7 49. Qe4+ Kh8 50. Qe8+ Kh7 51. Qe4+ g6 52. Qe7+ Kg8 53. Qe8+ Kg7 54. Qe7+ Kg8 55. Qe8+ Kg7 56. Qe7+ Kg8 $11) 47. Ke2 Qd6 $11 (47... Qg1 $2 48. Rxg8+ Kxg8 49. Qe8+ Kh7 50. Qxd7 $18)) 45... Rd4 $2 {[%emt 0:03:32]} (45... cxb4 $2 {is the wrong capture.} 46. Rxg8+ Kxg8 47. Qe8+ Kh7 48. Bd3+ Rxd3 49. Qxa4 $18) (45... Qxb4+ 46. Qxb4 cxb4) 46. Qe6 $18 {[%emt 0:00:00]} Qxb4+ {[%emt 0:00:35]} 47. Kf2 {[%emt 0:00:00]} Rxf4+ {[%emt 0:00:06]} 48. Kg3 {[%emt 0:00:00]} Qe1+ {[%emt 0:01:22]} 49. Kxf4 {[%emt 0:00:00]} Qf2+ {[%emt 0:00:17]} 50. Bf3 {[%emt 0:00:00]} g5+ {[%emt 0:00:34]} 51. Kf5 {[%emt 0:00:00]} Qxf3+ {[%emt 0:00:37]} 52. Kg6 {[%emt 0:00:00]} 1-0